[Event "Austrian Youth-ch U16 Boys 2024"]
[Site "Leibnitz"]
[Date "2024.03.27"]
[Round "6.5"]
[White "Geroe, Leonhard"]
[Black "Nicolussi, Hieronymus"]
[Result "1-0"]
[ECO "A48"]
[WhiteElo "2094"]
[BlackElo "1861"]
[Annotator "NA RC"]
[PlyCount "43"]
[EventDate "2024.03.23"]
[EventType "swiss"]
[EventCountry "AUT"]
[SourceTitle "playchess.com"]
[Source "ChessBase"]
[SourceQuality "1"]
[TimeControl "5400+30"]

1. d4 {[%emt 0:00:03]} Nf6 {[%emt 0:00:07]} 2. Bf4 {[%emt 0:00:06]} g6 {[%emt 0:00:29]} 3. Nf3 {[%emt 0:00:54]} Bg7 {[%emt 0:00:52]} 4. e3 {[%emt 0:00:06]} O-O {[%emt 0:01:12]} 5. h3 {[%emt 0:00:44]} d6 {[%emt 0:00:20]} 6. Be2 {[%emt 0:00:05]} Nbd7 {[%emt 0:02:11]} 7. O-O {[%emt 0:00:10]} Qe8 {[%emt 0:02:27]} 8. Bh2 {[%emt 0:06:30]} e5 {[%emt 0:04:28]} 9. dxe5 {[%emt 0:03:22]} dxe5 {[%emt 0:00:11]} 10. Nbd2 {[%emt 0:10:40]} Qe7 {[%emt 0:09:50]} 11. c3 {[%emt 0:10:27]} Rd8 {[%emt 0:08:26]} 12. Qc2 {[%emt 0:02:14]} Ne8 $11 {[%emt 0:11:36]} 13. Nc4 {[%emt 0:10:39]} b5 {[%emt 0:09:06]} 14. Na5 {[%emt 0:02:20]} Qc5 {[%emt 0:04:58]} 15. b4 {[%emt 0:17:05]} Qb6 {[%emt 0:08:03]} 16. c4 {[%emt 0:08:29]} bxc4 {[%emt 0:02:40]} 17. Bxc4 {[%emt 0:05:30]} Ba6 {[%emt 0:05:16]} 18. Bxa6 {[%emt 0:00:37]} Qxa6 {[%emt 0:00:18]} 19. Nc6 {[%emt 0:00:09]} Rdb8 {[%emt 0:03:09]} 20. Nxb8 {[%emt 0:00:59]} Rxb8 {[%emt 0:00:05]} 21. Rfd1 {[%emt 0:00:15]} Nd6 {[%emt 0:04:29]} 22. Qxc7 {[%emt 0:00:31]} 1-0

[Event "Austrian Youth-ch U16 Boys 2024"]
[Site "Leibnitz"]
[Date "2024.03.27"]
[Round "6.6"]
[White "Gschwandtl, Alexander"]
[Black "Raber, Eduard"]
[Result "1-0"]
[ECO "B00"]
[WhiteElo "1997"]
[BlackElo "1768"]
[Annotator "NA RC"]
[PlyCount "85"]
[EventDate "2024.03.23"]
[EventType "swiss"]
[EventCountry "AUT"]
[SourceTitle "playchess.com"]
[Source "ChessBase"]
[SourceQuality "1"]
[TimeControl "5400+30"]

1. e4 {[%emt 0:00:03]} b6 {[%emt 0:00:08]} 2. d4 {[%emt 0:00:38]} e6 {[%emt 0:00:07]} 3. Bd3 {[%emt 0:00:24]} Bb7 {[%emt 0:00:20]} 4. Nf3 {[%emt 0:02:32]} c5 {[%emt 0:02:15]} 5. c3 {[%emt 0:01:49]} cxd4 {[%emt 0:00:41]} 6. cxd4 {[%emt 0:00:17]} Nf6 {[%emt 0:00:16]} 7. Nc3 {[%emt 0:02:14]} Bb4 {[%emt 0:00:17]} 8. Bg5 {[%emt 0:10:11]} h6 {[%emt 0:00:29]} 9. Bxf6 {[%emt 0:01:19]} Qxf6 {[%emt 0:00:15]} 10. O-O {[%emt 0:06:04]} O-O {[%emt 0:00:29]} 11. Ne2 {[%emt 0:02:08]} h5 {[%emt 0:04:38]} 12. a3 {[%emt 0:04:11]} Be7 {[%emt 0:00:20]} 13. Rc1 {[%emt 0:02:35]} Nc6 {[%emt 0:02:06]} 14. Qd2 {[%emt 0:10:33]} g5 {[%emt 0:01:59]} 15. Qe3 {[%emt 0:15:09]} g4 $11 {[%emt 0:01:24]} 16. Nd2 {[%emt 0:11:36]} Qg7 {[%emt 0:02:16]} 17. f4 {[%emt 0:03:01]} f5 {[%emt 0:03:20]} 18. e5 {[%emt 0:04:37]} h4 {[%emt 0:00:46]} 19. Rc2 {[%emt 0:03:25]} h3 {[%emt 0:00:58]} 20. g3 {[%emt 0:04:04]} Rfd8 {[%emt 0:02:41]} 21. Bc4 {[%emt 0:00:24]} Kh7 {[%emt 0:00:26]} 22. Rfc1 {[%emt 0:00:42]} a6 {[%emt 1:15:19]} 23. b4 {[%emt 0:03:15]} b5 {[%emt 0:00:00]} 24. Bd3 {[%emt 0:02:29]} Bxb4 {[%emt 0:00:00]} 25. axb4 {[%emt 0:02:06]} Nxb4 {[%emt 0:00:00]} 26. Rc7 {[%emt 0:02:09]} Nd5 {[%emt 0:00:00]} 27. Qf2 {[%emt 0:00:56]} Nxc7 {[%emt 0:00:00]} 28. Rxc7 {[%emt 0:00:12]} Bc6 {[%emt 0:00:00]} 29. Nb3 {[%emt 0:01:03]} a5 {[%emt 0:00:00]} 30. Nc5 {[%emt 0:00:30]} Qf7 {[%emt 0:00:00]} 31. d5 {[%emt 0:01:33]} Bxd5 {[%emt 0:00:00]} 32. Bxb5 {[%emt 0:00:20]} Rac8 {[%emt 0:00:00]} 33. Ra7 {[%emt 0:01:16]} Ra8 {[%emt 0:00:00]} 34. Rc7 {[%emt 0:03:09]} Rab8 {[%emt 0:00:00]} 35. Nc3 {[%emt 0:00:07]} Kg6 {[%emt 0:00:00]} 36. Qd4 {[%emt 0:00:56]} Rdc8 {[%emt 0:00:00]} 37. Rxd7 {[%emt 0:00:22]} Qf8 {[%emt 0:00:00]} 38. Rd6 {[%emt 0:00:27]} Qf7 {[%emt 0:00:00]} 39. Qxd5 {[%emt 0:00:11]} Rxc5 {[%emt 0:00:00]} 40. Qxc5 {[%emt 0:00:20]} Qb7 {[%emt 0:00:00]} 41. Rxe6+ {[%emt 0:01:02]} Kh5 {[%emt 0:00:00]} 42. Qc6 {[%emt 0:00:10]} Qa7+ {[%emt 0:00:00]} 43. Kf1 {[%emt 0:00:19]} 1-0

[Event "Austrian Youth-ch U16 Boys 2024"]
[Site "Leibnitz"]
[Date "2024.03.27"]
[Round "6.7"]
[White "Standhartinger, Joachim"]
[Black "Guba, Viktor"]
[Result "1/2-1/2"]
[ECO "C55"]
[WhiteElo "1930"]
[BlackElo "1892"]
[Annotator "NA RC"]
[PlyCount "68"]
[EventDate "2024.03.23"]
[EventType "swiss"]
[EventCountry "AUT"]
[SourceTitle "playchess.com"]
[Source "ChessBase"]
[SourceQuality "1"]
[TimeControl "5400+30"]

1. e4 {[%emt 0:00:21]} e5 {[%emt 0:00:12]} 2. Nf3 {[%emt 0:00:16]} Nc6 {[%emt 0:00:11]} 3. Bc4 {[%emt 0:00:36]} Nf6 {[%emt 0:00:13]} 4. d3 {[%emt 0:00:27]} Be7 {[%emt 0:01:01]} 5. O-O {[%emt 0:00:27]} O-O {[%emt 0:03:15]} 6. Nbd2 {[%emt 0:00:23]} a6 {[%emt 0:02:02]} 7. Bb3 {[%emt 0:01:31]} d5 {[%emt 0:04:44]} 8. exd5 {[%emt 0:06:06]} Nxd5 {[%emt 0:00:06]} 9. Re1 {[%emt 0:05:07]} f6 {[%emt 0:03:21]} 10. Ne4 {[%emt 0:13:02]} Kh8 {[%emt 0:03:24]} 11. d4 {[%emt 0:03:58]} exd4 $1 {[%emt 0:11:12]} 12. Nxd4 {[%emt 0:01:33]} Ndb4 $16 {[%emt 0:00:21]} (12... Na5 $11) 13. Nxc6 {[%emt 0:15:10]} Qxd1 {[%emt 0:01:29]} 14. Rxd1 {[%emt 0:00:29]} Nxc6 {[%emt 0:00:04]} 15. Bf4 {[%emt 0:04:52]} Ne5 {[%emt 0:02:22]} 16. Ng5 {[%emt 0:15:09]} Bc5 {[%emt 0:02:44]} 17. Ne6 {[%emt 0:07:23]} Bxe6 {[%emt 0:00:07]} 18. Bxe6 {[%emt 0:00:05]} Bd6 {[%emt 0:03:28]} 19. Be3 {[%emt 0:03:11]} Rfe8 {[%emt 0:03:56]} 20. Bd5 {[%emt 0:00:34]} Rab8 {[%emt 0:04:10]} 21. Ba7 {[%emt 0:05:33]} Ra8 {[%emt 0:00:19]} 22. Bd4 {[%emt 0:00:09]} c6 {[%emt 0:04:39]} 23. Bb3 {[%emt 0:00:11]} Rad8 {[%emt 0:00:46]} 24. Bb6 {[%emt 0:02:15]} Rd7 {[%emt 0:00:06]} 25. c4 {[%emt 0:01:12]} Bb8 {[%emt 0:03:41]} 26. g3 {[%emt 0:02:37]} Rde7 {[%emt 0:06:58]} 27. Bd8 {[%emt 0:03:42]} Rd7 {[%emt 0:01:45]} 28. Ba5 {[%emt 0:00:43]} Rde7 {[%emt 0:01:34]} 29. Bb4 {[%emt 0:01:39]} Re6 {[%emt 0:01:12]} 30. f4 {[%emt 0:01:14]} Ng4 {[%emt 0:00:56]} 31. Re1 {[%emt 0:01:44]} Ba7+ {[%emt 0:00:24]} 32. Kg2 {[%emt 0:00:56]} Bd4 {[%emt 0:01:26]} 33. Rxe6 {[%emt 0:03:21]} Rxe6 {[%emt 0:00:06]} 34. c5 {[%emt 0:00:40]} Re8 {[%emt 0:01:00]} 1/2-1/2

[Event "Austrian Youth-ch U16 Boys 2024"]
[Site "Leibnitz"]
[Date "2024.03.27"]
[Round "6.8"]
[White "Groessing, Daniel-Yosuke"]
[Black "Steinwidder, Jonathan"]
[Result "1/2-1/2"]
[ECO "A70"]
[WhiteElo "1897"]
[BlackElo "1834"]
[Annotator "NA RC"]
[PlyCount "44"]
[EventDate "2024.03.23"]
[EventType "swiss"]
[EventCountry "AUT"]
[SourceTitle "playchess.com"]
[Source "ChessBase"]
[SourceQuality "1"]
[TimeControl "5400+30"]

1. d4 {[%emt 0:00:05]} Nf6 {[%emt 0:00:01]} 2. c4 {[%emt 0:00:07]} e6 {[%emt 0:00:05]} 3. Nf3 {[%emt 0:00:27]} c5 {[%emt 0:02:11]} 4. d5 {[%emt 0:00:47]} exd5 {[%emt 0:04:25]} 5. cxd5 {[%emt 0:00:23]} d6 {[%emt 0:00:27]} 6. Nc3 {[%emt 0:01:04]} Nbd7 {[%emt 0:04:55]} 7. e4 {[%emt 0:01:52]} a6 {[%emt 0:02:40]} 8. a4 {[%emt 0:02:17]} g6 {[%emt 0:12:05]} 9. Bd3 {[%emt 0:02:01]} Bg7 {[%emt 0:01:42]} 10. O-O {[%emt 0:01:26]} O-O {[%emt 0:01:01]} 11. Bf4 {[%emt 0:02:39]} Qc7 {[%emt 0:01:34]} 12. h3 {[%emt 0:04:18]} Re8 {[%emt 0:01:43]} 13. Nd2 $16 {[%emt 0:04:14]} Nh5 {[%emt 0:21:45]} 14. Bh2 {[%emt 0:03:20]} Be5 {[%emt 0:02:09]} 15. f4 {[%emt 0:08:54]} Bd4+ {[%emt 0:07:34]} 16. Kh1 {[%emt 0:00:24]} Nhf6 {[%emt 0:01:29]} 17. Qf3 {[%emt 0:06:42]} b6 {[%emt 0:01:37]} 18. Rab1 {[%emt 0:12:06]} Bb7 {[%emt 0:03:04]} 19. Ne2 {[%emt 0:04:45]} Bxd5 {[%emt 0:03:24]} 20. Nxd4 {[%emt 0:07:21]} cxd4 {[%emt 0:00:22]} 21. Rfc1 {[%emt 0:03:57]} Bc6 {[%emt 0:00:17]} 22. Rc4 {[%emt 0:08:19]} Nc5 {[%emt 0:04:34]} 1/2-1/2

[Event "Austrian Youth-ch U16 Boys 2024"]
[Site "Leibnitz"]
[Date "2024.03.28"]
[Round "7.1"]
[White "Leitgeb, Julian"]
[Black "Nguyen, Le Minh Phu"]
[Result "1/2-1/2"]
[ECO "B08"]
[WhiteElo "2130"]
[BlackElo "2218"]
[Annotator "RC"]
[PlyCount "51"]
[EventDate "2024.03.23"]
[EventType "swiss"]
[EventCountry "AUT"]
[SourceTitle "playchess.com"]
[Source "ChessBase"]
[SourceQuality "1"]
[TimeControl "5400+30"]

1. e4 {[%emt 0:00:03]} d6 {[%emt 0:00:05]} 2. d4 {[%emt 0:00:05]} Nf6 {[%emt 0:00:05]} 3. Nc3 {[%emt 0:00:06]} g6 {[%emt 0:00:05]} 4. Be3 {[%emt 0:00:14]} c6 {[%emt 0:00:04]} 5. h3 {[%emt 0:00:05]} Nbd7 {[%emt 0:01:18]} 6. Nf3 {[%emt 0:00:58]} Bg7 {[%emt 0:00:55]} 7. a4 {[%emt 0:03:05]} Qc7 {[%emt 0:01:32]} 8. Be2 {[%emt 0:00:14]} O-O {[%emt 0:00:06]} 9. O-O {[%emt 0:00:15]} Re8 {[%emt 0:03:39]} 10. a5 {[%emt 0:08:35]} e5 {[%emt 0:09:25]} 11. dxe5 {[%emt 0:05:24]} Nxe5 {[%emt 0:00:07]} 12. Nxe5 {[%emt 0:06:12]} dxe5 {[%emt 0:00:39]} 13. Bc4 {[%emt 0:03:30]} Be6 {[%emt 0:04:44]} 14. Bxe6 {[%emt 0:00:44]} Rxe6 {[%emt 0:00:06]} 15. Qe2 {[%emt 0:04:16]} Ne8 {[%emt 0:04:56]} 16. f3 {[%emt 0:10:26]} Nd6 {[%emt 0:02:09]} 17. b3 {[%emt 0:05:08]} Bf8 {[%emt 0:07:57]} 18. Rfd1 {[%emt 0:05:47]} f5 {[%emt 0:06:00]} 19. Qf2 {[%emt 0:03:52]} Nb5 {[%emt 0:06:19]} 20. Nxb5 {[%emt 0:01:00]} cxb5 {[%emt 0:00:07]} 21. Rd5 {[%emt 0:02:14]} Rc6 {[%emt 0:00:25]} 22. exf5 {[%emt 0:06:54]} gxf5 {[%emt 0:13:27]} 23. f4 {[%emt 0:02:37]} Rxc2 {[%emt 0:05:25]} 24. Qg3+ {[%emt 0:00:18]} Qg7 {[%emt 0:00:46]} 25. Qxg7+ {[%emt 0:00:38]} Bxg7 {[%emt 0:00:05]} 26. fxe5 {[%emt 0:03:22]} 1/2-1/2

[Event "Austrian Youth-ch U16 Boys 2024"]
[Site "Leibnitz"]
[Date "2024.03.28"]
[Round "7.2"]
[White "Geroe, Leonhard"]
[Black "Jetzl, Julian"]
[Result "1-0"]
[ECO "D00"]
[WhiteElo "2094"]
[BlackElo "1998"]
[Annotator "RC"]
[PlyCount "155"]
[EventDate "2024.03.23"]
[EventType "swiss"]
[EventCountry "AUT"]
[SourceTitle "playchess.com"]
[Source "ChessBase"]
[SourceQuality "1"]
[TimeControl "5400+30"]

1. d4 {[%emt 0:00:06]} Nf6 {[%emt 0:00:10]} 2. Bg5 {[%emt 0:00:11]} g6 {[%emt 0:00:26]} 3. Bxf6 {[%emt 0:00:22]} exf6 {[%emt 0:00:06]} 4. e3 {[%emt 0:07:10]} d5 {[%emt 0:01:42]} 5. Nd2 {[%emt 0:00:36]} Bd6 {[%emt 0:01:31]} 6. Bd3 {[%emt 0:05:21]} Nd7 {[%emt 0:03:16]} 7. Ne2 {[%emt 0:06:55]} f5 {[%emt 0:03:01]} 8. c4 {[%emt 0:10:19]} Nf6 {[%emt 0:11:42]} 9. c5 {[%emt 0:07:28]} Be7 {[%emt 0:01:31]} 10. b4 {[%emt 0:06:27]} h5 {[%emt 0:18:24]} 11. a4 {[%emt 0:12:27]} h4 {[%emt 0:05:30]} 12. h3 {[%emt 0:00:50]} Nh5 {[%emt 0:07:38]} 13. Qc2 {[%emt 0:01:47]} Bg5 {[%emt 0:08:42]} 14. Nf3 {[%emt 0:01:27]} Qf6 {[%emt 0:03:46]} 15. a5 {[%emt 0:13:47]} c6 {[%emt 0:06:46]} 16. b5 {[%emt 0:01:57]} O-O {[%emt 0:02:11]} 17. O-O {[%emt 0:02:23]} Bh6 {[%emt 0:03:55]} 18. a6 {[%emt 0:01:21]} Re8 {[%emt 0:03:46]} 19. axb7 {[%emt 0:01:27]} Bxb7 {[%emt 0:00:05]} 20. bxc6 {[%emt 0:00:03]} Bxc6 {[%emt 0:00:16]} 21. Ra6 {[%emt 0:00:06]} f4 {[%emt 0:02:10]} 22. Ne5 {[%emt 0:01:23]} Re6 {[%emt 0:00:23]} 23. e4 {[%emt 0:04:03]} f3 {[%emt 0:01:36]} 24. Ng4 {[%emt 0:02:56]} Qg5 {[%emt 0:03:16]} 25. gxf3 {[%emt 0:01:55]} Rae8 {[%emt 0:03:39]} 26. Qc1 {[%emt 0:05:04]} dxe4 {[%emt 0:04:21]} 27. fxe4 {[%emt 0:01:24]} Bxe4 {[%emt 0:01:47]} 28. Qxg5 {[%emt 0:01:46]} Bxg5 {[%emt 0:00:06]} 29. Rxe6 {[%emt 0:00:05]} Rxe6 {[%emt 0:00:16]} 30. Bc4 {[%emt 0:00:14]} Re7 {[%emt 0:00:45]} 31. Nc3 {[%emt 0:00:24]} Bf3 {[%emt 0:03:17]} 32. Ne5 {[%emt 0:00:23]} Ba8 {[%emt 0:00:00]} 33. Rb1 {[%emt 0:01:25]} Bd2 {[%emt 0:00:00]} 34. Rb8+ {[%emt 0:00:06]} Kg7 {[%emt 0:00:00]} 35. Nb1 {[%emt 0:00:03]} Bf4 {[%emt 0:00:11]} 36. Rxa8 {[%emt 0:00:57]} Bxe5 {[%emt 0:00:17]} 37. dxe5 {[%emt 0:00:30]} Rxe5 {[%emt 0:00:07]} 38. Nd2 {[%emt 0:00:24]} Rxc5 {[%emt 0:00:17]} 39. Rxa7 {[%emt 0:00:09]} Rf5 {[%emt 0:00:52]} 40. f3 {[%emt 0:04:14]} Nf4 {[%emt 0:02:03]} 41. Bf1 {[%emt 0:00:13]} Rd5 {[%emt 0:00:35]} 42. Ne4 {[%emt 0:00:19]} Rd1 {[%emt 0:00:27]} 43. Kf2 {[%emt 0:00:11]} Ne6 {[%emt 0:00:18]} 44. Bc4 {[%emt 0:00:15]} Nd8 {[%emt 0:00:30]} 45. Ng5 {[%emt 0:00:12]} Rd4 {[%emt 0:00:19]} 46. Nxf7 {[%emt 0:01:02]} Nc6 {[%emt 0:00:53]} 47. Rc7 {[%emt 0:00:04]} Na5 {[%emt 0:00:10]} 48. Ne5+ {[%emt 0:00:30]} Kf6 {[%emt 0:00:51]} 49. Ng4+ {[%emt 0:00:09]} Kf5 {[%emt 0:00:11]} 50. Rc5+ {[%emt 0:00:05]} Kf4 {[%emt 0:00:05]} 51. Rxa5 {[%emt 0:00:29]} Rxc4 {[%emt 0:00:14]} 52. Ra2 {[%emt 0:00:08]} Rb4 {[%emt 0:01:11]} 53. Ne3 {[%emt 0:00:28]} Rd4 {[%emt 0:00:05]} 54. Ng2+ {[%emt 0:00:11]} Kg5 {[%emt 0:00:26]} 55. Ra5+ {[%emt 0:00:14]} Kf6 {[%emt 0:00:12]} 56. Ke3 {[%emt 0:00:05]} Rb4 {[%emt 0:00:11]} 57. Ra3 {[%emt 0:02:11]} g5 {[%emt 0:00:11]} 58. Ne1 {[%emt 0:00:10]} Rb1 {[%emt 0:00:07]} 59. Nd3 {[%emt 0:00:09]} Rh1 {[%emt 0:00:19]} 60. Nf2 {[%emt 0:00:16]} Re1+ {[%emt 0:00:21]} 61. Kd2 {[%emt 0:00:10]} Rb1 {[%emt 0:00:40]} 62. Ke2 {[%emt 0:02:06]} Kf5 {[%emt 0:00:44]} 63. Nd3 {[%emt 0:00:13]} Rh1 {[%emt 0:00:32]} 64. Ra5+ {[%emt 0:00:05]} Kg6 {[%emt 0:00:35]} 65. Nf2 {[%emt 0:00:16]} Rb1 {[%emt 0:00:06]} 66. Ne4 {[%emt 0:00:59]} Rb2+ {[%emt 0:00:07]} 67. Ke3 {[%emt 0:01:13]} Rb3+ {[%emt 0:00:10]} 68. Ke2 {[%emt 0:00:35]} Rb2+ {[%emt 0:00:10]} 69. Nd2 {[%emt 0:00:05]} Rc2 {[%emt 0:00:22]} 70. Kd3 {[%emt 0:01:36]} Rc1 {[%emt 0:01:35]} 71. Ne4 {[%emt 0:00:08]} Rg1 {[%emt 0:00:04]} 72. Rxg5+ {[%emt 0:00:14]} Rxg5 {[%emt 0:00:12]} 73. Nxg5 {[%emt 0:00:02]} Kxg5 {[%emt 0:00:04]} 74. Ke4 {[%emt 0:00:04]} Kf6 {[%emt 0:01:30]} 75. Kf4 {[%emt 0:00:04]} Ke6 {[%emt 0:00:04]} 76. Kg5 {[%emt 0:00:04]} Ke5 {[%emt 0:00:15]} 77. f4+ {[%emt 0:00:15]} Ke6 {[%emt 0:00:06]} 78. Kg6 {[%emt 0:00:06]} 1-0

[Event "Austrian Youth-ch U16 Boys 2024"]
[Site "Leibnitz"]
[Date "2024.03.28"]
[Round "7.3"]
[White "Wu, Chenshan"]
[Black "Gschwandtl, Alexander"]
[Result "1-0"]
[ECO "E32"]
[WhiteElo "1815"]
[BlackElo "1997"]
[Annotator "RC"]
[PlyCount "99"]
[EventDate "2024.03.23"]
[EventType "swiss"]
[EventCountry "AUT"]
[SourceTitle "playchess.com"]
[Source "ChessBase"]
[SourceQuality "1"]
[TimeControl "5400+30"]

1. d4 {[%emt 0:00:02]} Nf6 {[%emt 0:00:04]} 2. c4 {[%emt 0:00:04]} e6 {[%emt 0:00:02]} 3. Nc3 {[%emt 0:00:04]} Bb4 {[%emt 0:00:04]} 4. Qc2 {[%emt 0:00:04]} b6 {[%emt 0:00:08]} 5. a3 {[%emt 0:00:13]} Bxc3+ {[%emt 0:00:12]} 6. Qxc3 {[%emt 0:00:05]} Bb7 {[%emt 0:00:12]} 7. f3 {[%emt 0:00:30]} d5 {[%emt 0:00:30]} 8. Bg5 {[%emt 0:00:56]} Nbd7 {[%emt 0:01:37]} 9. e3 {[%emt 0:00:56]} h6 {[%emt 1:32:11]} 10. Bh4 {[%emt 0:00:43]} O-O {[%emt 0:00:00]} 11. cxd5 {[%emt 0:01:25]} exd5 {[%emt 0:00:00]} 12. Bd3 {[%emt 0:00:25]} Re8 {[%emt 0:00:00]} 13. Ne2 {[%emt 0:01:06]} Qe7 {[%emt 0:00:00]} 14. Bf2 {[%emt 0:02:18]} Rac8 {[%emt 0:00:00]} 15. O-O {[%emt 0:02:00]} c5 {[%emt 0:00:00]} 16. Qd2 {[%emt 0:05:24]} c4 {[%emt 0:00:00]} 17. Bc2 {[%emt 0:03:33]} Qd6 {[%emt 0:00:00]} 18. Nc3 {[%emt 0:09:06]} a6 {[%emt 0:00:00]} 19. Rfe1 {[%emt 0:05:37]} b5 {[%emt 0:00:00]} 20. e4 {[%emt 0:06:57]} Qb6 {[%emt 0:00:00]} 21. e5 {[%emt 0:03:40]} Nh7 {[%emt 0:00:00]} 22. f4 {[%emt 0:03:59]} a5 {[%emt 0:00:00]} 23. f5 {[%emt 0:03:57]} b4 {[%emt 0:00:00]} 24. axb4 {[%emt 0:04:47]} axb4 {[%emt 0:00:00]} 25. Ne2 {[%emt 0:01:50]} f6 {[%emt 0:01:43]} 26. e6 {[%emt 0:04:25]} Nb8 {[%emt 0:00:11]} 27. Nf4 {[%emt 0:03:00]} Na6 {[%emt 0:03:30]} 28. Ba4 {[%emt 0:05:58]} Bc6 {[%emt 0:00:19]} 29. Bxc6 {[%emt 0:02:58]} Qxc6 {[%emt 0:00:04]} 30. Nxd5 {[%emt 0:01:40]} Qxd5 {[%emt 0:00:40]} 31. Rxa6 {[%emt 0:00:11]} c3 {[%emt 0:01:05]} 32. bxc3 {[%emt 0:01:34]} bxc3 {[%emt 0:00:05]} 33. Qc2 {[%emt 0:01:36]} Re7 {[%emt 0:01:14]} 34. h4 {[%emt 0:02:38]} Nf8 {[%emt 0:01:50]} 35. Rea1 {[%emt 0:01:07]} Rb8 {[%emt 0:01:32]} 36. R6a5 {[%emt 0:02:03]} Qc6 {[%emt 0:00:46]} 37. Rc5 {[%emt 0:00:42]} Qd6 {[%emt 0:00:12]} 38. Qxc3 {[%emt 0:00:19]} Reb7 {[%emt 0:00:27]} 39. Bg3 {[%emt 0:00:50]} Rb1+ {[%emt 0:00:27]} 40. Kh2 {[%emt 0:00:30]} Qb6 {[%emt 0:00:30]} 41. Rxb1 {[%emt 0:00:23]} Qxb1 {[%emt 0:00:09]} 42. Bxb8 {[%emt 0:00:06]} Qxb8+ {[%emt 0:00:03]} 43. Kh1 {[%emt 0:00:24]} Qb1+ {[%emt 0:00:05]} 44. Qc1 {[%emt 0:00:07]} Qe4 {[%emt 0:00:13]} 45. Qd2 {[%emt 0:03:55]} Qxh4+ {[%emt 0:00:15]} 46. Kg1 {[%emt 0:00:06]} Qe4 {[%emt 0:00:09]} 47. d5 {[%emt 0:01:07]} Qxf5 {[%emt 0:00:39]} 48. e7 {[%emt 0:00:51]} Qb1+ {[%emt 0:00:12]} 49. Rc1 {[%emt 0:00:17]} Qb6+ {[%emt 0:00:13]} 50. Kh1 {[%emt 0:00:13]} 1-0

[Event "Austrian Youth-ch U16 Boys 2024"]
[Site "Leibnitz"]
[Date "2024.03.28"]
[Round "7.4"]
[White "Maier, Tobias"]
[Black "Stickler, Florentin"]
[Result "0-1"]
[ECO "C47"]
[WhiteElo "1893"]
[BlackElo "1885"]
[Annotator "NA RC"]
[PlyCount "94"]
[EventDate "2024.03.23"]
[EventType "swiss"]
[EventCountry "AUT"]
[SourceTitle "playchess.com"]
[Source "ChessBase"]
[SourceQuality "1"]
[TimeControl "5400+30"]

1. e4 {[%emt 0:00:03]} e5 {[%emt 0:00:06]} 2. Nc3 {[%emt 0:00:03]} Nc6 {[%emt 0:01:50]} 3. Nf3 {[%emt 0:05:06]} Nf6 {[%emt 0:01:16]} 4. a3 {[%emt 0:00:09]} Be7 {[%emt 0:01:20]} 5. d4 {[%emt 0:02:24]} exd4 {[%emt 0:01:11]} 6. Nxd4 {[%emt 0:00:04]} d6 {[%emt 0:04:43]} 7. Be2 {[%emt 0:06:53]} O-O {[%emt 0:00:52]} 8. Be3 {[%emt 0:01:05]} Re8 $11 {[%emt 0:01:37]} 9. O-O {[%emt 0:12:37]} h6 {[%emt 0:03:50]} 10. f4 {[%emt 0:02:55]} d5 {[%emt 0:03:12]} 11. Nxc6 {[%emt 0:07:48]} bxc6 {[%emt 0:00:15]} 12. e5 {[%emt 0:00:08]} Nd7 {[%emt 0:01:29]} 13. Bh5 {[%emt 0:14:24]} Nb6 {[%emt 0:03:29]} 14. b3 {[%emt 0:17:04]} c5 {[%emt 0:01:55]} 15. Bd2 {[%emt 0:12:59]} d4 {[%emt 0:01:53]} 16. Ne4 {[%emt 0:00:54]} d3 {[%emt 0:02:49]} 17. c4 {[%emt 0:02:35]} Qd4+ {[%emt 0:01:54]} 18. Nf2 {[%emt 0:00:07]} Bb7 {[%emt 0:01:54]} 19. Bf3 {[%emt 0:01:49]} Bxf3 {[%emt 0:01:26]} 20. Qxf3 {[%emt 0:00:06]} Qb2 {[%emt 0:01:52]} 21. Qd1 {[%emt 0:00:53]} Rad8 {[%emt 0:01:35]} 22. Kh1 {[%emt 0:04:20]} f5 {[%emt 0:01:51]} 23. Rb1 {[%emt 0:02:55]} Qd4 {[%emt 0:01:08]} 24. Qh5 {[%emt 0:00:35]} Rf8 {[%emt 0:01:34]} 25. Nd1 {[%emt 0:00:43]} a5 {[%emt 0:01:28]} 26. Ne3 {[%emt 0:01:08]} Qd7 {[%emt 0:01:04]} 27. Rf3 {[%emt 0:00:45]} Qe6 {[%emt 0:03:11]} 28. Rg3 {[%emt 0:01:24]} Kh7 {[%emt 0:00:56]} 29. Bxa5 {[%emt 0:01:10]} Rd4 {[%emt 0:01:22]} 30. Bxb6 {[%emt 0:00:25]} cxb6 {[%emt 0:00:19]} 31. Nd5 {[%emt 0:00:08]} b5 {[%emt 0:01:02]} 32. Nxe7 {[%emt 0:02:16]} Qxe7 {[%emt 0:00:22]} 33. Qg6+ {[%emt 0:00:15]} Kh8 {[%emt 0:00:15]} 34. cxb5 {[%emt 0:00:40]} d2 {[%emt 0:00:47]} 35. Rd1 {[%emt 0:00:08]} Re4 {[%emt 0:00:12]} 36. h3 {[%emt 0:01:00]} Re1+ {[%emt 0:00:06]} 37. Kh2 {[%emt 0:00:12]} Rxd1 {[%emt 0:00:05]} 38. Rd3 {[%emt 0:00:39]} Rd8 {[%emt 0:00:29]} 39. Qh5 {[%emt 0:00:40]} Rxd3 {[%emt 0:00:16]} 40. Qxd1 {[%emt 0:00:06]} Qh4 {[%emt 0:00:06]} 41. a4 {[%emt 0:00:49]} Qg3+ {[%emt 0:00:15]} 42. Kg1 {[%emt 0:00:04]} Qe1+ {[%emt 0:00:05]} 43. Kh2 {[%emt 0:00:51]} Qxd1 {[%emt 0:00:09]} 44. b6 {[%emt 0:00:34]} Qxb3 {[%emt 0:00:16]} 45. a5 {[%emt 0:00:05]} d1=Q {[%emt 0:00:07]} 46. e6 {[%emt 0:00:11]} Rxh3+ {[%emt 0:00:13]} 47. gxh3 {[%emt 0:00:10]} Qe2+ {[%emt 0:00:04]} 0-1